bitfinex-derivatives/quotes_ETHF0:USTF0_20250804
["timestamp","ask_amount","ask_price","bid_price","bid_amount"]
[1754341643114,20.3922,3703.4,3703.3,2.26017]
[1754341643800,19.9371,3703.4,3703.3,2.26017]
[1754341645305,19.6323,3703.4,3703.3,2.26017]
[1754341645506,19.9371,3703.4,3703.3,2.26017]
[1754341645902,0.399,3704.0,3703.9,0.53997]
[1754341646104,20.3711,3704.0,3703.9,1.4436]
[1754341646303,20.3711,3704.0,3703.9,0.3081]
[1754341646504,1.24579,3703.9,3703.8,0.53999]
[1754341646808,2.28009,3703.9,3703.8,0.53999]
[1754341647509,2.28009,3703.9,3703.8,1.04159]
[1754341648512,2.28009,3703.9,3703.8,1.47429]
[1754341649107,2.28009,3703.9,3703.8,0.9343]
[1754341650913,1.7401,3703.9,3703.8,1.4436]
[1754341651419,1.7401,3703.9,3703.8,1.7256]
[1754341651908,1.2911,3703.9,3703.8,1.7256]
[1754341652108,3.4896,3704.2,3704.1,0.53996]
[1754341652305,0.53994,3704.3,3704.2,1.1413]
[1754341652505,18.629,3704.3,3704.2,1.7256]
[1754341652912,19.028,3704.3,3704.2,1.7256]
[1754341653214,19.3315,3704.3,3704.2,1.7256]
[1754341653817,19.6133,3704.3,3704.2,1.7256]
[1754341654317,0.399,3704.3,3704.2,1.7256]
[1754341654512,19.6133,3704.3,3704.2,1.7256]
[1754341654711,20.3691,3704.3,3704.2,1.7256]
[1754341655712,2.27999,3704.6,3704.5,2.2655]
[1754341656014,21.59331448,3704.6,3704.5,1.7256]
[1754341656217,20.90799,3704.6,3704.5,1.7256]
[1754341657209,0.7025,3704.6,3704.5,1.7256]
[1754341657413,19.3295,3704.6,3704.5,1.7256]
[1754341657811,19.6113,3704.6,3704.5,1.7256]
[1754341658013,20.3671,3704.6,3704.5,1.7256]
[1754341658215,0.7025,3704.6,3704.5,1.7256]
[1754341658413,0.53986,3704.8,3704.1,4.55767]
[1754341658414,0.53986,3704.8,3704.7,1.7256]
[1754341658620,3.2078,3704.9,3704.8,2.26545]
[1754341658820,21.8348,3704.9,3704.8,2.26545]
[1754341659019,1.12511,3705.2,3705.1,1.24841]
[1754341659020,0.3035,3705.2,3705.1,1.24841]
[1754341659221,18.626,3705.2,3705.1,2.26541]
[1754341659523,0.9843,3705.4,3705.3,2.26538]
[1754341659722,19.3285,3705.4,3705.3,2.26538]
[1754341660125,0.9843,3705.6,3705.5,1.24835]
[1754341660325,19.3285,3705.6,3705.5,2.26535]
[1754341661418,19.9141,3705.6,3705.5,2.26535]
[1754341661823,20.3631,3705.6,3705.5,2.26535]
[1754341662825,19.022,3705.6,3705.5,2.26535]
[1754341663026,1.4583,3705.9,3705.8,1.24831]
[1754341663227,21.04653043,3705.9,3705.8,1.7256]
[1754341663529,20.3631,3705.9,3705.8,1.7256]
[1754341664232,1.0,3706.0,3705.9,1.2366]
[1754341664426,1.0,3706.0,3705.9,1.7256]
[1754341664927,1.7401,3705.8,3705.7,1.98332]
[1754341665131,20.3611,3705.8,3705.7,1.98332]
[1754341665326,0.53972,3705.7,3705.2,3.5101]
[1754341665527,1.1548,3705.5,3705.4,0.53977]
[1754341665727,1.1548,3705.5,3704.8,1.34964]
[1754341665728,0.7058,3704.9,3704.8,1.04145]
[1754341665928,20.3601,3704.9,3704.8,0.53985]
[1754341666127,20.3601,3704.9,3704.8,2.26545]
[1754341666729,20.3601,3704.9,3704.8,1.47415]
[1754341667130,20.3601,3704.9,3704.8,1.98345]
[1754341667331,20.3601,3704.9,3704.8,1.4436]
[1754341667533,20.3601,3704.9,3704.8,1.7256]
[1754341668731,3.2078,3705.1,3705.0,0.4005]
[1754341668934,20.3601,3705.1,3705.0,0.5016]
[1754341669130,0.7058,3704.9,3704.8,1.04144]
[1754341669437,18.62,3705.1,3705.0,2.26543]
[1754341669635,1.7401,3705.4,3705.3,0.5016]
[1754341669837,20.3591,3705.4,3705.3,0.5016]
[1754341670428,1.7401,3705.3,3705.2,0.53979]
[1754341670633,1.7401,3705.3,3705.2,2.26539]
[1754341671032,1.7401,3705.3,3705.2,1.68109]
[1754341671233,1.7401,3705.3,3705.2,0.53979]
[1754341671537,1.7401,3705.3,3705.2,1.47409]
[1754341671738,1.7401,3705.3,3705.2,1.98339]
[1754341671936,1.7401,3705.3,3705.2,1.04139]
[1754341672141,1.7401,3704.8,3704.7,0.9343]
[1754341672340,20.3591,3704.8,3704.7,0.53987]
[1754341672936,20.3591,3704.8,3704.7,1.04147]
[1754341673135,20.3591,3704.8,3704.7,1.47417]
[1754341673632,20.3591,3704.8,3704.7,2.26547]
[1754341673934,4.0558,3705.1,3705.0,1.24843]
[1754341674139,20.3581,3705.1,3705.0,2.26543]
[1754341674639,1.7401,3705.4,3705.3,1.24838]
[1754341674939,1.0,3706.0,3705.9,2.26529]
[1754341675341,1.2025,3706.0,3705.9,2.26529]
[1754341675532,1.506,3706.0,3705.9,2.26529]
[1754341675940,1.7025,3706.0,3705.9,2.26529]
[1754341676642,1.399,3706.0,3705.9,2.26529]
[1754341677340,1.6811,3706.0,3705.9,2.26529]
[1754341677939,0.5345,3706.0,3705.9,5.47309]
[1754341678338,2.2314,3706.0,3705.9,5.47309]
[1754341678737,2.2314,3706.0,3705.9,1.98329]
[1754341678939,1.0059,3705.9,3705.5,3.6272]
[1754341679244,1.6969,3705.6,3705.5,0.53975]
[1754341679742,0.5345,3706.0,3705.9,1.6784]
[1754341681838,0.691,3706.8,3706.7,1.93598]
[1754341682046,3.8988,3707.2,3707.1,1.64672]
[1754341682337,0.1903,3706.6,3706.5,1.93601]
[1754341682642,0.691,3706.4,3706.2,0.53965]
[1754341682841,3.7706,3706.8,3706.1,1.34917]
[1754341683038,3.7706,3706.8,3706.0,3.2078]
[1754341683039,0.691,3706.4,3706.3,1.26084]
[1754341683240,1.6969,3706.4,3706.3,1.26084]
[1754341683440,1.6969,3706.3,3705.9,0.4194]
[1754341683645,1.6969,3706.2,3706.1,0.53966]
[1754341684244,1.6969,3706.1,3706.0,0.53967]
[1754341684740,19.4176,3706.3,3706.2,0.84145]
[1754341684942,19.3121,3706.3,3706.2,1.93605]
[1754341685139,19.3121,3706.3,3706.2,0.84145]
[1754341685346,19.3121,3706.3,3705.6,1.34934]
[1754341685347,1.6969,3706.2,3706.1,0.53966]
[1754341685550,1.6969,3706.2,3706.1,0.84146]
[1754341685742,1.6969,3706.2,3706.1,0.53966]
[1754341686047,0.5007,3705.7,3705.6,1.2054]
[1754341686350,1.6969,3705.7,3705.6,0.53974]
[1754341686642,0.53964,3706.3,3706.2,0.53964]
[1754341686843,1.6969,3706.1,3706.0,0.53968]
[1754341687041,0.6701,3706.1,3706.0,0.53968]
[1754341687238,3.6788,3706.4,3706.3,1.64684]
[1754341687441,0.2807,3706.4,3706.3,2.21434]
[1754341687645,4.16,3706.8,3706.7,1.93598]
[1754341687946,5.14533432,3706.8,3706.7,1.93598]
[1754341688147,5.58843432,3706.8,3706.7,1.64678]
[1754341688346,5.58843432,3706.8,3706.7,0.84138]
[1754341688548,5.58843432,3706.8,3706.7,1.64678]
[1754341688747,5.58843432,3706.8,3706.7,0.84138]
[1754341689441,2.38063432,3706.8,3706.7,1.93598]
[1754341689644,1.35383432,3706.8,3706.7,1.64678]
[1754341689849,1.93753432,3706.8,3706.7,1.93598]
[1754341690347,2.38063432,3706.8,3706.7,1.64678]
[1754341691049,1.6969,3706.7,3706.6,0.53958]
[1754341691543,1.6969,3706.7,3706.6,0.84138]
[1754341691750,2.38063432,3706.7,3706.6,0.84138]
[1754341692245,2.38063432,3706.7,3706.6,1.26078]
[1754341693045,2.38063432,3706.7,3706.6,0.7212]
[1754341693256,1.6969,3706.2,3706.1,1.26087]
[1754341693544,1.6969,3706.2,3706.1,1.93607]
[1754341693746,1.6969,3706.2,3706.1,0.53967]
[1754341693951,1.23066,3706.2,3706.0,0.53967]
[1754341694145,1.6969,3706.1,3706.0,0.84147]
[1754341694341,1.6969,3706.1,3706.0,1.26087]
[1754341694952,0.691,3705.5,3705.4,2.68049069]
[1754341695150,1.6969,3705.5,3705.4,1.45197]
[1754341695342,1.6969,3705.5,3705.4,0.53977]
[1754341695548,18.639,3705.7,3705.2,2.37869069]
[1754341695549,0.53979,3705.3,3705.2,0.53979]
[1754341695753,1.6969,3705.3,3705.2,0.53979]
[1754341696353,1.6969,3705.3,3705.2,0.84159]
[1754341696549,1.6969,3705.3,3705.2,1.26099]
[1754341696949,1.2538,3705.3,3705.2,1.93619]
[1754341697446,0.6701,3705.3,3705.2,1.93619]
[1754341697651,1.6969,3705.3,3705.2,1.93619]
[1754341698253,1.6969,3705.3,3705.2,1.64699]
[1754341698450,1.6969,3705.3,3705.2,0.53979]
[1754341699049,1.6969,3705.3,3705.2,0.84159]
[1754341699649,0.5398,3705.2,3705.1,0.53981]
[1754341699852,0.9522,3705.2,3705.1,0.53981]
[1754341700054,1.3953,3705.2,3705.1,1.93621]
[1754341700355,1.6969,3705.2,3705.1,1.93621]
[1754341700857,0.6701,3705.2,3705.1,2.21431]
[1754341701248,1.4162,3705.5,3705.4,0.53977]
[1754341701454,20.3269,3705.5,3705.4,1.93617]
[1754341701849,0.2807,3705.5,3705.4,1.93617]
[1754341702055,0.471,3705.5,3705.4,2.21427]
[1754341702759,2.23667,3705.5,3705.3,0.53977]
[1754341702953,1.6969,3705.4,3705.3,0.53977]
[1754341703847,1.6969,3705.4,3705.3,1.93617]
[1754341704353,1.2538,3705.4,3705.3,1.93617]
[1754341704550,1.6969,3705.4,3705.3,1.22757]
[1754341704753,1.6969,3705.4,3705.3,0.53977]
[1754341704954,0.471,3705.4,3705.3,2.21427]
[1754341705354,0.2807,3705.4,3705.3,2.21427]
[1754341705655,18.621,3705.7,3705.6,2.21444]
[1754341706063,18.9155,3705.7,3705.6,2.21444]
[1754341706355,0.2945,3705.7,3705.6,2.21444]
[1754341706855,1.1393,3706.1,3706.0,1.22988]
[1754341707055,20.057,3706.1,3706.0,1.97898]
[1754341707660,20.3515,3706.1,3706.0,1.97898]
[1754341708556,0.6889,3706.1,3706.0,1.67108]
[1754341708755,0.6889,3706.1,3705.7,1.34928]
[1754341708756,4.3363,3706.3,3706.2,1.27815]
[1754341708956,4.632,3706.3,3706.2,1.97895]
[1754341709152,4.9265,3706.3,3706.2,1.97895]
[1754341709862,3.8967,3706.3,3706.2,2.25725]
[1754341710463,3.2078,3706.3,3706.2,2.25725]
[1754341710665,0.1895,3706.4,3706.3,1.7176]
[1754341710866,1.2864,3706.4,3706.3,1.4393]
[1754341711558,1.7187,3706.4,3706.3,1.4393]
[1754341711762,1.7187,3706.4,3706.3,0.2973]
[1754341712363,1.7187,3706.4,3706.3,0.7385]
[1754341712558,1.7187,3706.4,3706.3,1.1314]
[1754341712863,1.7187,3706.4,3706.3,1.4393]
[1754341713758,1.7187,3706.3,3706.2,1.02455]
[1754341713958,1.7187,3706.3,3706.2,2.55465]
[1754341714159,1.7187,3706.3,3706.2,2.86255]
[1754341714354,19.1576,3706.6,3706.5,0.4849]
[1754341714561,20.1495,3706.6,3706.5,0.6902]
[1754341715063,20.8763,3706.6,3706.5,0.6902]
[1754341715567,19.3069,3706.6,3706.5,1.7176]
[1754341716064,19.102,3706.6,3706.5,1.7176]
[1754341717561,20.3367,3706.6,3706.4,0.53961]
[1754341717859,1.4242,3706.5,3706.4,1.04221]
[1754341718055,0.484,3706.5,3706.4,2.25721]
[1754341718255,0.6889,3706.5,3706.4,2.25721]
[1754341718455,0.9846,3706.5,3706.4,2.25721]
[1754341718658,18.618,3706.6,3706.4,2.25721]
[1754341718962,19.102,3706.6,3706.4,0.98081]
[1754341719163,18.9125,3706.6,3706.5,1.4393]
[1754341719363,19.102,3706.6,3706.5,1.7176]
[1754341719557,19.3069,3706.6,3706.5,1.7176]
[1754341719763,19.9044,3706.6,3706.5,1.7176]
[1754341719964,20.3367,3706.6,3706.5,1.4393]
[1754341720167,1.7187,3706.6,3706.5,1.4393]
[1754341720566,0.484,3706.6,3706.5,1.7176]
[1754341720963,19.3092,3706.9,3706.8,0.2973]
[1754341721169,0.9846,3706.6,3706.5,1.97891]
[1754341721368,1.7187,3706.6,3706.5,1.97891]
[1754341723068,1.2864,3706.6,3706.5,1.97891]
[1754341723269,1.2864,3706.6,3706.5,2.25721]
[1754341724471,1.2864,3706.6,3706.5,1.97891]
[1754341724670,1.7187,3706.6,3706.5,1.97891]
[1754341724971,1.7187,3706.6,3706.5,5.46501]
[1754341724972,0.2945,3706.6,3706.5,5.46501]
[1754341727870,0.2945,3706.9,3706.8,2.25716]
[1754341728179,19.8964,3707.2,3707.1,1.22972]
[1754341728374,19.8964,3707.2,3707.1,1.97882]
[1754341728677,3.6991,3707.4,3707.3,1.22969]
[1754341728871,20.3287,3707.4,3707.3,1.97879]
[1754341729071,20.3287,3707.4,3707.3,0.83679]
[1754341729472,20.3287,3707.4,3707.3,0.53949]
[1754341730877,20.3267,3707.4,3707.3,1.27799]
[1754341731075,20.3267,3707.4,3707.3,1.67089]
[1754341734074,20.3257,3707.4,3707.3,2.25709]
[1754341734280,1.7187,3707.4,3707.3,5.46489]
[1754341734582,1.2864,3707.4,3707.3,5.46489]
[1754341734778,1.7187,3708.1,3708.0,0.53939]
[1754341734978,20.3247,3708.1,3708.0,0.83669]
[1754341735482,2.25809,3708.0,3707.9,0.53939]
[1754341735685,1.7187,3708.0,3707.9,1.71119]
[1754341736680,1.7187,3708.0,3707.9,2.02059]
[1754341737280,1.2848,3708.0,3707.9,0.84729]
[1754341737485,1.7217,3708.0,3707.9,2.02059]
[1754341737984,20.3267,3708.0,3707.9,2.02059]
[1754341738384,1.7217,3708.0,3707.9,2.02059]
[1754341738777,18.605,3708.0,3707.9,2.29849]
[1754341738984,19.1156,3708.0,3707.9,2.29849]
[1754341739384,19.6013,3708.0,3707.9,2.29849]
[1754341739785,3.2078,3708.2,3708.1,0.53937]
[1754341739987,39.8665,3708.7,3708.6,0.5393]
[1754341740188,58.4705,3708.7,3708.6,0.5393]
[1754341740988,20.3257,3708.7,3708.6,2.0205]
[1754341741188,1.7217,3708.7,3708.6,2.0205]
[1754341741385,3.5118,3709.4,3708.8,1.25007]
[1754341741580,0.304,3709.6,3708.9,1.7591]
[1754341741786,18.603,3709.5,3708.9,1.7591]
[1754341742387,0.304,3709.4,3708.9,1.7591]
[1754341743288,0.304,3709.4,3708.9,2.6423]
[1754341744790,19.14113,3709.8,3708.9,2.6423]
[1754341744991,0.304,3709.4,3708.9,2.6423]
[1754341747491,0.2876,3709.3,3708.9,2.6423]
[1754341747792,0.304,3709.2,3708.9,2.6423]
[1754341748392,2.7217,3709.0,3708.9,0.8832]
[1754341748984,5.9295,3709.0,3708.9,0.5731]
[1754341749191,0.6932,3708.2,3708.1,1.1718]
[1754341749592,0.9808,3708.2,3708.1,2.31617]
[1754341749891,0.9963,3708.2,3708.1,2.31617]
[1754341750491,1.7099,3708.2,3708.1,2.00677]
[1754341750691,0.6932,3708.0,3707.4,3.2078]
[1754341750895,0.9972,3708.2,3708.1,1.04447]
[1754341751087,1.4223,3708.2,3708.1,2.00677]
[1754341751292,1.4223,3708.2,3708.1,2.31617]
[1754341751495,1.7099,3708.2,3708.1,2.31617]
[1754341751895,1.7099,3708.2,3708.1,1.71117]
[1754341752095,1.7099,3708.2,3708.1,0.53937]
[1754341752597,1.7099,3708.2,3708.1,0.76152056]
[1754341752992,1.7099,3708.2,3708.1,0.53937]
[1754341753194,1.7099,3708.2,3708.1,0.76151084]
[1754341753599,1.7099,3708.2,3708.1,0.22214084]
[1754341754095,4.9177,3708.2,3708.1,0.22214084]
[1754341754299,2.02707,3708.1,3708.0,0.1091]
[1754341754494,1.4877,3708.1,3708.0,0.1091]
[1754341755197,1.4877,3708.1,3708.0,0.64849]
[1754341755495,0.2876,3708.4,3708.3,0.53934]
[1754341755695,0.9963,3708.4,3708.3,2.31614]
[1754341756001,1.4877,3708.4,3708.3,2.31614]
[1754341756496,0.2066,3708.8,3708.7,0.53928]
[1754341756792,2.02697,3708.8,3708.7,1.25008]
[1754341756997,1.4877,3708.8,3708.7,0.84718]
[1754341757697,1.4877,3708.5,3708.4,1.2617]
[1754341758304,1.4877,3708.5,3708.4,2.00673]
[1754341758496,2.02697,3708.9,3708.8,0.53927]
[1754341758702,1.23247,3708.8,3708.7,0.53928]
[1754341758901,2.02697,3708.8,3708.7,0.53928]
[1754341759298,1.4877,3708.8,3708.7,0.53928]
[1754341759499,5.6955,3709.0,3708.9,1.50536]
[1754341759802,5.6955,3709.0,3708.9,2.31606]
[1754341760498,5.6955,3709.0,3708.9,2.00666]
[1754341760697,5.6955,3709.0,3708.9,1.71106]
[1754341760899,2.4877,3709.0,3708.9,1.71106]
[1754341761402,2.4877,3709.0,3708.9,2.00666]
[1754341761897,0.6932,3708.7,3708.6,3.2078]
[1754341762097,0.5393,3708.6,3708.5,0.53931]
[1754341762400,1.2325,3708.6,3708.5,0.53931]
[1754341762596,1.23252,3708.5,3708.4,0.53932]
[1754341762796,1.82412,3708.5,3708.4,0.53932]
[1754341762993,2.02632,3708.5,3708.4,0.53932]
[1754341764000,1.487,3708.5,3708.4,0.53932]
[1754341764394,1.487,3708.5,3708.3,0.53933]
[1754341764599,1.487,3708.4,3708.3,1.50543]
[1754341764903,1.487,3708.4,3708.3,2.00673]
[1754341765500,2.02633,3708.4,3708.3,0.53933]
[1754341765696,1.98737,3708.1,3708.0,0.1091]
[1754341765896,1.448,3708.1,3708.0,0.1091]
[1754341766094,4.6558,3708.1,3707.5,1.90021723]
[1754341766299,0.5296,3707.6,3707.4,0.53947]
[1754341766499,1.2038,3707.5,3707.4,0.53947]
[1754341766801,1.2038,3707.5,3707.4,1.04450688]
[1754341767704,1.2038,3707.5,3707.4,0.75550688]
[1754341767905,1.2038,3707.5,3707.4,0.21603688]
[1754341772303,1.06907,3707.4,3707.3,0.53948]
[1754341772506,1.2038,3707.4,3707.3,0.75542175]
[1754341773804,1.2038,3707.4,3707.3,0.21594175]
[1754341775309,1.2038,3707.4,3707.1,0.53951]
[1754341775310,0.88209,3707.3,3707.2,0.5395]
[1754341775510,20.34329,3707.3,3707.2,0.75539975]
[1754341775710,23.55109,3707.3,3707.2,0.5395]
[1754341775912,0.53952,3707.2,3707.1,0.53951]
[1754341776114,1.74332,3707.2,3707.1,0.7553801]
[1754341776615,1.2038,3707.2,3707.1,0.7553801]
[1754341776809,1.2038,3707.2,3707.1,1.7054801]
[1754341777213,1.2038,3707.2,3707.1,1.2498801]
[1754341777513,1.2038,3707.2,3707.1,1.7054801]
[1754341778609,1.2038,3707.2,3707.1,2.21600127]
[1754341779307,1.2038,3707.2,3707.1,0.21599203]
[1754341779509,0.5296,3706.6,3706.3,3.2078]
[1754341779713,0.5296,3706.6,3706.4,0.82862]
[1754341779714,0.8193,3706.5,3706.4,0.82862]
[1754341780411,1.2038,3706.5,3706.4,0.82862]
[1754341781010,1.2038,3706.5,3706.4,1.03412]
[1754341781213,1.2038,3706.5,3706.4,1.69262]
[1754341781414,1.2038,3706.5,3706.4,2.00012]
[1754341781610,0.9595,3706.8,3706.7,0.53958]
[1754341781812,18.601,3707.0,3706.9,1.7668]
[1754341782812,19.2708,3707.0,3706.9,0.4945]
[1754341783009,0.5296,3706.7,3706.6,1.48969]
[1754341783207,0.4733,3706.4,3706.3,1.48973]
[1754341783411,1.2038,3706.4,3706.3,1.48973]
[1754341783913,0.3793,3707.0,3706.9,1.69255]
[1754341784111,19.271,3707.0,3706.9,1.7668]
[1754341784316,19.8058,3707.0,3706.9,1.4605]
[1754341784818,1.2038,3707.0,3706.9,1.4605]
[1754341785115,19.8148,3707.0,3706.9,1.4605]
[1754341785310,0.3793,3707.0,3706.9,1.7668]
[1754341785516,0.669,3707.3,3707.2,0.6974]
[1754341785717,19.5665,3707.3,3707.2,1.7668]
[1754341786018,18.9863,3707.3,3707.2,2.3063]
[1754341786917,19.276,3707.3,3707.2,2.3063]
[1754341787519,3.4001,3707.6,3707.5,2.30626]
[1754341787816,18.8003,3707.6,3707.5,2.30626]
[1754341788119,19.277,3707.6,3707.5,2.30626]
[1754341788319,0.669,3707.6,3707.5,2.30626]
[1754341788616,19.273,3707.6,3707.5,2.30626]
[1754341789220,19.272,3707.6,3707.5,2.30626]
[1754341789516,0.669,3707.6,3707.5,2.30626]
[1754341789718,19.272,3707.6,3707.5,2.30626]
[1754341790021,19.271,3707.6,3707.5,2.30626]
[1754341790517,0.669,3707.6,3707.5,2.30626]
[1754341790921,19.271,3707.6,3707.5,2.30626]
[1754341791426,19.271,3707.6,3707.5,2.51591596]
[1754341792614,0.6698,3707.8,3707.7,1.23683]
[1754341792920,3.2078,3708.0,3707.9,2.3062]
[1754341793122,3.2078,3708.0,3707.9,2.51585596]
[1754341793320,3.8768,3708.0,3707.9,2.51585596]
[1754341793511,4.1673,3708.0,3707.9,1.97645596]
[1754341794321,0.91863,3708.4,3708.3,0.4945]
[1754341794522,1.74324,3707.7,3707.6,0.82844]
[1754341794723,1.74324,3707.7,3707.6,1.69944011]
[1754341795120,1.74324,3707.7,3707.6,1.16000011]
[1754341795723,1.2038,3707.7,3707.6,1.64230011]
[1754341795923,1.2038,3707.7,3707.6,1.93550011]
[1754341796124,0.7538,3707.7,3707.6,1.64230011]
[1754341796328,1.1978,3707.7,3707.6,1.93550011]
[1754341797824,1.1978,3707.7,3707.6,0.70440011]
[1754341798021,1.1978,3707.7,3707.6,1.13530011]
[1754341799428,1.1978,3707.7,3707.6,1.13554176]
[1754341800524,1.1978,3707.7,3707.6,0.21014176]
[1754341801424,0.524,3707.5,3707.4,0.84457]
[1754341801624,19.7978,3707.5,3707.4,1.68612333]
[1754341801825,19.7978,3707.5,3707.4,0.51525333]
[1754341802128,19.7978,3707.5,3707.4,0.71575333]
[1754341802330,19.7978,3707.5,3707.4,1.14665333]
[1754341804525,19.7978,3707.5,3707.4,1.34225333]
[1754341804728,19.7978,3707.5,3707.4,1.62165333]
[1754341805731,0.6692,3707.5,3707.4,1.91485333]
[1754341805925,3.2078,3707.6,3707.5,2.24416]
[1754341806125,21.8078,3707.6,3707.5,2.45431333]
[1754341806628,18.6,3707.6,3707.5,2.45431333]
[1754341806829,19.2692,3707.6,3707.5,2.45431333]
[1754341807330,19.2692,3707.6,3707.5,2.45430738]
[1754341807532,19.6484,3707.6,3707.5,1.91484738]
[1754341807733,23.0056,3707.6,3707.5,1.91484738]
[1754341808822,3.2078,3707.6,3707.5,1.91484738]
[1754341809226,3.5824,3707.6,3707.5,1.91484738]
[1754341809431,4.1628,3707.6,3707.5,1.91484738]
[1754341811333,4.4056,3707.6,3707.5,1.34224738]
[1754341811530,4.4056,3707.6,3707.5,1.91484738]
[1754341812534,1.1978,3707.6,3707.5,1.91484738]
[1754341813532,0.862,3707.6,3706.9,1.34884]
[1754341813831,0.82536,3706.9,3706.7,1.04517]
[1754341814036,1.1978,3706.8,3706.7,1.81337]
[1754341814234,1.0484,3706.8,3706.7,1.81337]
[1754341814433,1.0484,3706.8,3706.7,2.24427]
[1754341816438,18.6,3706.9,3706.7,2.24427]
[1754341816638,18.6,3706.9,3706.8,1.7047]
[1754341820045,19.555,3706.9,3706.8,1.7047]
[1754341823141,18.9746,3706.9,3706.8,1.7047]
[1754341823345,19.554,3707.2,3707.1,2.24422]
[1754341823541,19.6474,3707.2,3707.1,2.24422]
[1754341823740,19.7968,3707.2,3707.1,2.24422]
[1754341826542,0.53945,3707.6,3707.1,2.24422]
[1754341826741,0.5277,3707.6,3707.5,2.23736]
[1754341826942,19.1267,3707.6,3707.5,2.23736]
[1754341827143,19.8282,3707.6,3707.5,2.23736]
[1754341827843,0.985,3707.6,3707.5,2.23736]
[1754341828045,0.1864,3708.3,3708.2,1.65566]
[1754341828346,18.7854,3708.3,3708.2,2.23726]
[1754341828544,19.46666214,3708.3,3708.2,2.23726]
[1754341828738,19.65726214,3708.3,3708.2,2.23726]
[1754341828943,20.26526214,3708.3,3708.2,2.23726]
[1754341829247,19.584,3708.3,3708.2,2.23726]
[1754341830046,19.6775,3708.3,3708.2,2.23726]
[1754341832244,18.599,3708.3,3708.2,2.23726]
[1754341832439,18.976,3708.3,3708.2,2.23726]
[1754341832646,19.584,3708.3,3708.2,2.23726]
[1754341833547,19.6778,3708.3,3708.2,2.23726]
[1754341834848,19.584,3708.3,3708.2,2.23726]
[1754341835249,18.972,3708.3,3708.2,2.23726]
[1754341835749,19.58,3708.3,3708.2,2.23726]
[1754341837347,18.972,3708.3,3708.2,2.23726]
[1754341837744,0.6857,3708.6,3708.5,1.6979]
[1754341837948,19.577,3708.6,3708.5,1.6979]
[1754341838545,19.6708,3708.6,3708.5,1.6979]
[1754341839847,0.377,3708.6,3708.5,1.6979]
[1754341840149,0.1864,3708.9,3708.8,2.23717]
[1754341840446,1.0,3709.0,3708.8,1.23527]
[1754341840652,1.0,3709.0,3708.9,1.6979]
[1754341842352,0.608,3708.9,3708.8,0.53927]
[1754341842560,1.2289,3708.9,3708.8,2.23717]
[1754341844058,1.0,3709.0,3708.9,1.6979]
[1754341844759,1.1864,3709.0,3708.9,1.6979]
[1754341845254,0.4025,3708.9,3708.8,0.53927]
[1754341845558,1.2289,3708.9,3708.8,0.53927]
[1754341845760,1.2289,3708.9,3708.8,1.95317]
[1754341845967,1.2289,3708.9,3708.8,2.23717]
[1754341847553,1.2289,3708.8,3708.7,0.53928]
[1754341849763,1.2289,3708.8,3708.7,0.84198]
[1754341851166,1.2289,3708.8,3708.7,2.23718]
[1754341852157,0.985,3708.8,3708.7,2.23718]
[1754341852664,1.0788,3708.8,3708.7,2.23718]
[1754341855065,1.2289,3708.8,3708.7,2.23718]
[1754341856165,1.2288,3708.8,3708.7,2.23718]
[1754341857361,19.9925,3709.0,3708.9,1.24356]
[1754341857569,20.6921,3709.0,3708.9,2.29926]
[1754341858168,20.8421,3709.0,3708.9,2.29926]
[1754341858369,1.0,3709.0,3708.9,2.29926]
[1754341858567,2.2591,3709.0,3708.9,1.99216]
[1754341858770,2.2591,3709.0,3708.9,2.29926]
[1754341859067,1.0,3709.0,3708.9,2.29926]
[1754341859369,19.5728,3709.8,3709.7,1.04024]
[1754341859569,20.3428,3709.8,3709.7,2.29914]
[1754341860469,1.7598,3709.8,3709.7,2.29914]
[1754341860967,1.7598,3709.8,3709.3,1.34799]
[1754341860968,1.7598,3710.2,3710.1,1.19557]
[1754341861167,0.2034,3710.0,3709.9,1.1415]
[1754341861367,0.6906,3710.0,3709.9,1.3447]
[1754341861568,1.7598,3710.0,3709.9,1.3447]
[1754341861867,4.9676,3710.3,3710.2,2.29907]
[1754341862072,23.5496,3710.3,3710.2,2.29907]
[1754341862460,24.08865,3710.3,3710.2,2.29907]
[1754341862663,3.2078,3710.3,3710.2,2.29907]
[1754341862860,3.4112,3710.3,3710.2,2.29907]
[1754341863466,0.2034,3710.3,3710.2,2.29907]
[1754341863662,0.4845,3710.3,3710.2,2.29907]
[1754341863970,1.7598,3710.3,3710.2,2.29907]
[1754341865869,0.4872,3709.7,3709.6,1.78885]
[1754341866071,20.3388,3710.0,3709.9,2.29911]
[1754341866270,1.7598,3710.0,3709.9,2.29911]
[1754341866471,20.3378,3710.0,3709.9,2.29911]
[1754341866672,1.7598,3710.0,3709.9,2.29911]
[1754341867067,3.2078,3710.3,3710.1,0.53908]
[1754341867373,20.3378,3710.4,3710.3,2.29905]
[1754341867869,38.825,3710.7,3710.3,1.76]
[1754341868078,39.67059,3710.7,3710.6,1.4529]
[1754341868372,57.7086,3710.7,3710.6,1.69661]
[1754341868573,0.6906,3710.5,3710.4,0.74224]
[1754341868768,1.7598,3710.5,3710.4,2.29904]
[1754341870472,20.3368,3710.5,3710.4,2.29904]
[1754341870773,1.7598,3710.5,3710.4,2.29904]
[1754341871373,20.3368,3710.5,3710.4,2.29904]